fUSD/lending_fUSD_20250305
["ID","MTS","AMOUNT","RATE_DAILY","PERIOD"]
[355452971,1741181442158,-500.0,0.00011137,2]
[355452972,1741181442168,-526.13184005,0.00011137,2]
[355452973,1741181442177,-500.0,0.00011137,2]
[355452974,1741181442186,-500.0,0.00011137,2]
[355452975,1741181442196,-917.02,0.00011137,2]
[355452976,1741181442206,-667.27,0.00011137,2]
[355452977,1741181442215,-500.0,0.00011137,2]
[355452978,1741181442225,-500.0,0.00011137,2]
[355452979,1741181442234,-506.50290105,0.00011137,2]
[355452980,1741181442243,-544.6852561,0.00011137,2]
[355452981,1741181442253,-1345.22,0.00011137,2]
[355452982,1741181442264,-500.0,0.00011137,2]
[355452983,1741181442274,-502.91098856,0.00011137,2]
[355452984,1741181442283,-500.0,0.00011137,2]
[355452985,1741181442293,-1000.08,0.00011137,2]
[355452986,1741181442302,-506.47588229,0.00011137,2]
[355452987,1741181442311,-595.26,0.00011137,2]
[355452988,1741181442321,-500.0,0.00011137,2]
[355452989,1741181442330,-611.27639103,0.00011137,2]
[355452991,1741181442339,-1079.21,0.00011137,2]
[355452993,1741181442348,-521.37,0.00011137,2]
[355452994,1741181442358,-3360.84,0.00011137,2]
[355452995,1741181442367,-500.0,0.00011137,2]
[355452996,1741181442376,-757.58,0.00011137,2]
[355452998,1741181442385,-500.0,0.00011137,2]
[355452999,1741181442394,-500.61312383,0.00011137,2]
[355453000,1741181442404,-622.6,0.00011137,2]
[355453001,1741181442413,-603.3,0.00011137,2]
[355453002,1741181442423,-6816.92,0.00011137,2]
[355453003,1741181442432,-500.0,0.00011137,2]
[355453004,1741181442442,-502.16021894,0.00011137,2]
[355453005,1741181442451,-500.0,0.00011137,2]
[355453006,1741181442461,-724.43,0.00011137,2]
[355453007,1741181442470,-497.27753982,0.00011137,2]
[355453008,1741181442479,-500.0,0.00011137,2]
[355453009,1741181442489,-2136.85,0.00011137,2]
[355453012,1741181442499,-1581.57,0.00011137,2]
[355453013,1741181442508,-1490.89,0.00011137,2]
[355453014,1741181442519,-500.0,0.00011137,2]
[355453015,1741181442529,-500.0,0.00011137,2]
[355453016,1741181442539,-2272.23,0.00011137,2]
[355453017,1741181442548,-500.0,0.00011137,2]
[355453018,1741181442559,-1466.94,0.00011137,2]
[355453020,1741181442568,-183.79783951,0.00011137,2]
[355453021,1741181442585,-500.0,0.00011137,2]
[355453022,1741181442595,-500.0,0.00011137,2]
[355453023,1741181442604,-508.10876426,0.00011137,2]
[355453024,1741181442614,-500.0,0.00011137,2]
[355453025,1741181442624,-500.0,0.00011137,2]
[355453026,1741181442634,-500.0,0.00011137,2]
[355453027,1741181442643,-500.0,0.00011137,2]
[355453028,1741181442653,-5903.99,0.00011137,2]
[355453030,1741181442663,-12039.27,0.00011137,2]
[355453032,1741181442673,-4784.57,0.00011137,2]
[355453034,1741181442683,-500.0,0.00011137,2]
[355453035,1741181442692,-500.0,0.00011137,2]
[355453036,1741181442702,-500.0,0.00011137,2]
[355453037,1741181442712,-513.04,0.00011137,2]
[355453038,1741181442721,-504.46691612,0.00011137,2]
[355453039,1741181442731,-500.0,0.00011137,2]
[355453040,1741181442741,-989.15,0.00011137,2]
[355453041,1741181442751,-506.9015599,0.00011137,2]
[355453042,1741181442760,-1602.73,0.00011137,2]
[355453043,1741181442770,-500.0,0.00011137,2]
[355453044,1741181442780,-1056.7,0.00011137,2]
[355453045,1741181442790,-5470.89,0.00011137,2]
[355453046,1741181442800,-1640.56,0.00011137,2]
[355453047,1741181442810,-535.82025232,0.00011137,2]
[355453048,1741181442820,-676.37,0.00011137,2]
[355453049,1741181442829,-513.16213411,0.00011137,2]
[355453050,1741181442839,-500.0,0.00011137,2]
[355453051,1741181442849,-500.0,0.00011137,2]
[355453052,1741181442858,-513.08340553,0.00011137,2]
[355453053,1741181442868,-515.23753643,0.00011137,2]
[355453054,1741181442878,-500.0,0.00011137,2]
[355453055,1741181442888,-500.0,0.00011137,2]
[355453056,1741181442898,-500.0,0.00011137,2]
[355453057,1741181442907,-1539.42,0.00011137,2]
[355453058,1741181442918,-500.0,0.00011137,2]
[355453059,1741181442929,-2321.49,0.00011137,2]
[355453060,1741181442939,-500.0,0.00011137,2]
[355453061,1741181442950,-589.2,0.00011137,2]
[355453062,1741181442960,-590.29,0.00011137,2]
[355453063,1741181442970,-4748.48,0.00011137,2]
[355453064,1741181442980,-520.97687334,0.00011137,2]
[355453065,1741181442990,-514.11089791,0.00011137,2]
[355453066,1741181443003,-500.0,0.00011137,2]
[355453067,1741181443014,-500.0,0.00011137,2]
[355453068,1741181443024,-500.0,0.00011137,2]
[355453069,1741181443034,-500.0,0.00011137,2]
[355453070,1741181443045,-179.0303579,0.00011137,2]
[355453072,1741181443055,-3015.5,0.00011137,2]
[355453074,1741181443065,-1323.89,0.00011137,2]
[355453075,1741181443075,-909.72,0.00011137,2]
[355453076,1741181443086,-500.0,0.00011137,2]
[355453077,1741181443096,-500.0,0.00011137,2]
[355453078,1741181443106,-500.0,0.00011137,2]
[355453079,1741181443115,-2216.91,0.00011137,2]
[355453080,1741181443126,-500.0,0.00011137,2]
[355453081,1741181443135,-984.8,0.00011137,2]
[355453082,1741181443146,-527.95,0.00011137,2]
[355453083,1741181443155,-648.23,0.00011137,2]
[355453084,1741181443165,-518.57679932,0.00011137,2]
[355453085,1741181443175,-500.0,0.00011137,2]
[355453086,1741181443185,-639.40243955,0.00011137,2]
[355453087,1741181443195,-500.0,0.00011137,2]
[355453088,1741181443205,-500.0,0.00011137,2]
[355453089,1741181443215,-810.0,0.00011137,2]
[355453090,1741181443225,-1536.35,0.00011137,2]
[355453091,1741181443235,-500.0,0.00011137,2]
[355453092,1741181443245,-618.18,0.00011137,2]
[355453093,1741181443255,-1012.65,0.00011137,2]
[355453094,1741181443267,-503.12322583,0.00011137,2]
[355453095,1741181443277,-500.0,0.00011137,2]
[355453096,1741181443287,-2948.43,0.00011137,2]
[355453097,1741181443297,-1497.25,0.00011137,2]
[355453098,1741181443307,-641.16196866,0.00011137,2]
[355453099,1741181443316,-500.0,0.00011137,2]
[355453100,1741181443331,-500.0,0.00011137,2]
[355453101,1741181443346,-503.75751177,0.00011137,2]
[355453102,1741181443356,-1231.94,0.00011137,2]
[355453103,1741181443366,-1207.97,0.00011137,2]
[355453104,1741181443376,-1176.69,0.00011137,2]
[355453105,1741181443386,-501.97930121,0.00011137,2]
[355453106,1741181443397,-702.69,0.00011137,2]
[355453107,1741181443407,-500.0,0.00011137,2]
[355453108,1741181443417,-500.0,0.00011137,2]
[355453109,1741181443427,-500.0,0.00011137,2]
[355453110,1741181443438,-6485.34,0.00011137,2]
[355453111,1741181443448,-2391.01,0.00011137,2]
[355453112,1741181443459,-2219.07,0.00011137,2]
[355453113,1741181443469,-500.0,0.00011137,2]
[355453114,1741181443479,-1224.43,0.00011137,2]
[355453115,1741181443489,-629.2,0.00011137,2]
[355453116,1741181443499,-500.0,0.00011137,2]
[355453117,1741181443509,-500.0,0.00011137,2]
[355453118,1741181443520,-892.57,0.00011137,2]
[355453119,1741181443531,-506.28666807,0.00011137,2]
[355453120,1741181443541,-500.0,0.00011137,2]
[355453121,1741181443551,-706.71,0.00011137,2]
[355453122,1741181443561,-536.78,0.00011137,2]
[355453123,1741181443572,-788.61,0.00011137,2]
[355453124,1741181443582,-500.0,0.00011137,2]
[355453125,1741181443592,-11121.15,0.00011137,2]
[355453126,1741181443602,-500.0,0.00011137,2]
[355453127,1741181443612,-702.3,0.00011137,2]
[355453128,1741181443623,-500.0,0.00011137,2]
[355453129,1741181443633,-1161.73,0.00011137,2]
[355453130,1741181443643,-2196.31,0.00011137,2]
[355453131,1741181443653,-562.44,0.00011137,2]
[355453132,1741181443664,-562.44,0.00011137,2]
[355453133,1741181443673,-562.44,0.00011137,2]
[355453134,1741181443683,-500.0,0.00011137,2]
[355453135,1741181443693,-500.0,0.00011137,2]
[355453136,1741181443703,-500.0,0.00011137,2]
[355453137,1741181443712,-500.0,0.00011137,2]
[355453138,1741181443723,-500.0,0.00011137,2]
[355453139,1741181443733,-285.268451,0.00011137,2]
[355453140,1741181443743,-500.0,0.00011137,2]
[355453141,1741181443754,-1309.03,0.00011137,2]
[355453142,1741181443767,-500.0,0.00011137,2]
[355453143,1741181443780,-2358.45,0.00011137,2]
[355453144,1741181443790,-1918.89,0.00011137,2]
[355453145,1741181443800,-500.0,0.00011137,2]
[355453146,1741181443811,-5678.68,0.00011137,2]
[355453147,1741181443821,-895.58,0.00011137,2]
[355453148,1741181443831,-510.60293719,0.00011137,2]
[355453149,1741181443842,-500.0,0.00011137,2]
[355453150,1741181443852,-2474.6,0.00011137,2]
[355453151,1741181443863,-500.0,0.00011137,2]
[355453152,1741181443875,-511.94766207,0.00011137,2]
[355453153,1741181443885,-500.0,0.00011137,2]
[355453154,1741181443895,-1209.05,0.00011137,2]
[355453155,1741181443905,-500.0,0.00011137,2]
[355453156,1741181443915,-6150.51,0.00011137,2]
[355453157,1741181443925,-500.0,0.00011137,2]
[355453158,1741181443936,-2602.72,0.00011137,2]
[355453159,1741181443946,-508.46068208,0.00011137,2]
[355453160,1741181443956,-500.0,0.00011137,2]
[355453161,1741181443966,-500.0,0.00011137,2]
[355453162,1741181443976,-902.58,0.00011137,2]
[355453163,1741181443986,-3628.62,0.00011137,2]
[355453164,1741181443997,-507.85855244,0.00011137,2]
[355453165,1741181444012,-500.0,0.00011137,2]
[355453166,1741181444027,-754.64,0.00011137,2]
[355453167,1741181444037,-10068.73,0.00011137,2]
[355453168,1741181444048,-510.57839051,0.00011137,2]
[355453169,1741181444059,-500.0,0.00011137,2]
[355453170,1741181444069,-295.88997597,0.00011137,2]
[355453171,1741181444080,-1200.63,0.00011137,2]
[355453172,1741181444091,-6459.26,0.00011137,2]
[355453173,1741181444102,-500.0,0.00011137,2]
[355453174,1741181444112,-500.0,0.00011137,2]
[355453175,1741181444122,-510.14916752,0.00011137,2]
[355453176,1741181444132,-7399.27,0.00011137,2]
[355453177,1741181444143,-500.0,0.00011137,2]
[355453178,1741181444153,-1497.14,0.00011137,2]
[355453179,1741181444164,-6430.41,0.00011137,2]
[355453180,1741181444174,-786.03,0.00011137,2]
[355453181,1741181444184,-351.11163334,0.00011137,2]
[355453182,1741181444195,-512.47063589,0.00011137,2]
[355453183,1741181444206,-500.0,0.00011137,2]
[355453184,1741181444216,-941.02,0.00011137,2]
[355453185,1741181444227,-31065.41,0.00011137,2]
[355453186,1741181444237,-500.0,0.00011137,2]
[355453187,1741181444247,-3199.05,0.00011137,2]
[355453188,1741181444258,-500.0,0.00011137,2]
[355453189,1741181444271,-2246.68,0.00011137,2]
[355453190,1741181444281,-1085.74,0.00011137,2]
[355453191,1741181444291,-500.0,0.00011137,2]
[355453192,1741181444301,-500.0,0.00011137,2]
[355453193,1741181444312,-506.27891018,0.00011137,2]
[355453194,1741181444322,-4059.93,0.00011137,2]
[355453195,1741181444332,-500.0,0.00011137,2]
[355453196,1741181444342,-892.54,0.00011137,2]
[355453197,1741181444352,-500.0,0.00011137,2]
[355453198,1741181444363,-500.0,0.00011137,2]
[355453199,1741181444373,-952.94,0.00011137,2]
[355453200,1741181444383,-516.96276952,0.00011137,2]
[355453201,1741181444393,-500.0,0.00011137,2]
[355453202,1741181444403,-518.43566476,0.00011137,2]
[355453203,1741181444413,-500.0,0.00011137,2]
[355453204,1741181444423,-725.49,0.00011137,2]
[355453205,1741181444434,-1198.9,0.00011137,2]
[355453206,1741181444444,-2564.31,0.00011137,2]
[355453207,1741181444454,-1444.15,0.00011137,2]
[355453208,1741181444464,-500.0,0.00011137,2]
[355453209,1741181444476,-561.04270112,0.00011137,2]
[355453210,1741181444486,-557.685,0.00011137,2]
[355453211,1741181444496,-500.0,0.00011137,2]
[355453212,1741181444506,-2723.86,0.00011137,2]
[355453213,1741181444518,-500.0,0.00011137,2]
[355453214,1741181444528,-2409.36,0.00011137,2]
[355453215,1741181444538,-500.0,0.00011137,2]
[355453216,1741181444548,-518.73547095,0.00011137,2]
[355453217,1741181444558,-500.0,0.00011137,2]
[355453218,1741181444569,-500.0,0.00011137,2]
[355453219,1741181444579,-500.0,0.00011137,2]
[355453220,1741181444590,-500.0,0.00011137,2]
[355453221,1741181444601,-678.01,0.00011137,2]
[355453222,1741181444610,-525.04,0.00011137,2]
[355453223,1741181444620,-500.0,0.00011137,2]
[355453224,1741181444630,-510.77758524,0.00011137,2]
[355453225,1741181444640,-4500.04,0.00011137,2]
[355453226,1741181444650,-754.24,0.00011137,2]
[355453227,1741181444660,-522.22428532,0.00011137,2]
[355453228,1741181444671,-2004.06,0.00011137,2]
[355453229,1741181444681,-6751.53,0.00011137,2]
[355453230,1741181444691,-3596.87,0.00011137,2]
[355453231,1741181444701,-517.45678555,0.00011137,2]
[355453232,1741181444711,-33777.37,0.00011137,2]
[355453233,1741181444721,-500.0,0.00011137,2]
[355453234,1741181444731,-503374.40696761,0.00011138,2]
[355453235,1741181444742,-682.0,0.00011138,2]
[355453236,1741181444752,-160.0,0.00011138,3]
[355453237,1741181444762,-675001.2488086,0.00011138,2]
[355453238,1741181444774,-200.0,0.00011138,2]
[355453239,1741181444785,-2278814.98269399,0.00011138,2]
[355453240,1741181444795,-5002.32,0.00011138,2]
[355453241,1741181444805,-562.44,0.00011142,2]
[355453242,1741181444815,-500.0,0.00011143,2]
[355453243,1741181444826,-1899.62,0.00011143,2]
[355453244,1741181444836,-2073.86,0.00011143,2]
[355453245,1741181444847,-1580.94,0.00011143,2]
[355453246,1741181444857,-500.0,0.00011143,2]
[355453247,1741181444868,-500.0,0.00011143,2]
[355453248,1741181444878,-1186.67,0.00011143,2]
[355453249,1741181444889,-1349.05,0.00011143,2]
[355453250,1741181444899,-905.77,0.00011143,2]
[355453251,1741181444909,-500.0,0.00011143,2]
[355453252,1741181444919,-500.0,0.00011143,2]
[355453253,1741181444930,-500.0,0.00011143,2]
[355453254,1741181444941,-1339.74,0.00011143,2]
[355453255,1741181444951,-1860.17,0.00011143,2]
[355453256,1741181444962,-500.0,0.00011143,2]
[355453257,1741181444972,-2361.55,0.00011143,2]
[355453258,1741181444982,-1155.28,0.00011143,2]
[355453259,1741181444994,-1312.76,0.00011143,2]
[355453260,1741181445006,-1357.04,0.00011143,2]
[355453261,1741181445018,-925.85,0.00011143,2]
[355453262,1741181445030,-1012.9,0.00011143,2]
[355453263,1741181445042,-1389.76,0.00011143,2]
[355453264,1741181445053,-500.0,0.00011143,2]
[355453265,1741181445064,-742.69,0.00011143,2]
[355453266,1741181445075,-756.76,0.00011143,2]
[355453267,1741181445088,-1200.96,0.00011143,2]
[355453268,1741181445099,-909.44,0.00011143,2]
[355453269,1741181445111,-500.0,0.00011143,2]
[355453270,1741181445123,-1703.45,0.00011143,2]
[355453271,1741181445135,-1168.73,0.00011143,2]
[355453272,1741181445146,-500.0,0.00011143,2]
[355453273,1741181445157,-1922.76,0.00011143,2]
[355453274,1741181445167,-1504.89,0.00011143,2]
[355453275,1741181445178,-1673.43,0.00011143,2]
[355453276,1741181445189,-505.77,0.00011143,2]
[355453277,1741181445199,-1378.59,0.00011143,2]
[355453278,1741181445210,-833.92,0.00011143,2]
[355453279,1741181445221,-844.17,0.00011143,2]
[355453280,1741181445232,-500.0,0.00011143,2]
[355453281,1741181445243,-762.33,0.00011143,2]
[355453282,1741181445256,-746.71,0.00011143,2]
[355453283,1741181445271,-627.79,0.00011143,2]
[355453284,1741181445283,-500.0,0.00011143,2]
[355453285,1741181445296,-1534.68,0.00011143,2]
[355453286,1741181445310,-905.04,0.00011143,2]
[355453287,1741181445320,-1563.81,0.00011143,2]
[355453288,1741181445332,-2154.87,0.00011143,2]
[355453289,1741181445344,-2283.36,0.00011143,2]
[355453290,1741181445356,-562.44,0.00011143,2]
[355453291,1741181445375,-500.0,0.00011143,2]
[355453293,1741181445387,-500.0,0.00011143,2]
[355453295,1741181445399,-500.0,0.00011143,2]
[355453296,1741181445409,-500.0,0.00011143,2]
[355453297,1741181445420,-542.47,0.00011143,2]
[355453298,1741181445432,-1515.74,0.00011143,2]
[355453299,1741181445442,-1460.25,0.00011143,2]
[355453300,1741181445452,-531.12,0.00011143,2]
[355453302,1741181445463,-1566.52,0.00011143,2]
[355453303,1741181445473,-1382.31,0.00011143,2]
[355453305,1741181445484,-2080.17,0.00011143,2]
[355453307,1741181445494,-500.0,0.00011143,2]
[355453309,1741181445505,-500.0,0.00011144,2]
[355453311,1741181445516,-515.4432134,0.00011144,2]
[355453314,1741181445526,-1188.26,0.00011144,2]
[355453316,1741181445536,-961.82,0.00011144,2]
[355453318,1741181445547,-500.0,0.00011144,2]
[355453320,1741181445557,-512.29242539,0.00011144,2]
[355453322,1741181445568,-500.0,0.00011144,2]
[355453340,1741181445580,-772.22,0.00011144,2]
[355453341,1741181445847,-500.0,0.00011144,2]
[355453342,1741181445858,-500.0,0.00011144,2]
[355453343,1741181445868,-500.0,0.00011144,2]
[355453344,1741181445877,-547.96,0.00011144,2]
[355453345,1741181445886,-515.4863937,0.00011144,2]
[355453346,1741181445896,-508.61797089,0.00011144,2]
[355453347,1741181445905,-522.11144687,0.00011144,2]
[355453348,1741181445915,-500.0,0.00011144,2]
[355453349,1741181445925,-744.96,0.00011144,2]
[355453350,1741181445935,-507.64101777,0.00011144,2]
[355453351,1741181445944,-505.06270479,0.00011144,2]
[355453352,1741181445954,-500.0,0.00011144,2]
[355453353,1741181445963,-1333.34,0.00011144,2]
[355453354,1741181445974,-870.19,0.00011144,2]
[355453355,1741181445984,-516.8812839,0.00011144,2]
[355453356,1741181445995,-500.0,0.00011144,2]
[355453357,1741181446009,-545.75,0.00011144,2]
[355453358,1741181446020,-364.97296151,0.00011144,2]
[355453359,1741181446031,-1439.66,0.00011144,2]
[355453360,1741181446041,-500.0,0.00011144,2]
[355453361,1741181446051,-1025.96,0.00011144,2]
[355453362,1741181446060,-500.0,0.00011144,2]
[355453363,1741181446070,-500.0,0.00011144,2]
[355453364,1741181446082,-500.0,0.00011144,2]
[355453365,1741181446095,-500.0,0.00011144,2]
[355453366,1741181446105,-500.0,0.00011144,2]
[355453367,1741181446115,-767.35,0.00011144,2]
[355453368,1741181446125,-789.92,0.00011144,2]
[355453369,1741181446135,-1276.96,0.00011144,2]
[355453370,1741181446144,-500.0,0.00011144,2]
[355453371,1741181446157,-500.0,0.00011144,2]
[355453372,1741181446175,-500.0,0.00011144,2]
[355453373,1741181446185,-500.0,0.00011144,2]
[355453374,1741181446195,-500.0,0.00011144,2]
[355453375,1741181446204,-780.23,0.00011144,2]
[355453376,1741181446214,-511.59399898,0.00011144,2]
[355453377,1741181446224,-500.0,0.00011144,2]
[355453378,1741181446234,-500.0,0.00011144,2]
[355453379,1741181446243,-761.17,0.00011144,2]
[355453380,1741181446253,-557.85,0.00011144,2]
[355453381,1741181446263,-1180.03,0.00011144,2]
[355453382,1741181446275,-500.0,0.00011144,2]
[355453383,1741181446284,-500.0,0.00011144,2]
[355453384,1741181446294,-509.52399997,0.00011144,2]
[355453385,1741181446303,-500.0,0.00011144,2]
[355453386,1741181446313,-500.0,0.00011144,2]
[355453387,1741181446323,-500.0,0.00011144,2]
[355453388,1741181446333,-500.0,0.00011144,2]
[355453389,1741181446342,-500.0,0.00011144,2]
[355453390,1741181446352,-500.0,0.00011144,2]
[355453391,1741181446362,-507.43387309,0.00011144,2]
[355453392,1741181446372,-500.0,0.00011144,2]
[355453393,1741181446381,-500.0,0.00011144,2]
[355453394,1741181446391,-500.0,0.00011144,2]
[355453395,1741181446401,-500.0,0.00011144,2]
[355453396,1741181446410,-1126.38,0.00011144,2]
[355453397,1741181446420,-500.0,0.00011144,2]
[355453398,1741181446430,-1239.72,0.00011144,2]
[355453399,1741181446439,-506.91338053,0.00011144,2]
[355453400,1741181446449,-500.0,0.00011144,2]
[355453401,1741181446459,-500.0,0.00011144,2]
[355453402,1741181446469,-500.0,0.00011144,2]
[355453403,1741181446479,-500.41,0.00011144,2]
[355453404,1741181446489,-1357.16,0.00011144,2]
[355453405,1741181446499,-500.0,0.00011144,2]
[355453406,1741181446509,-500.0,0.00011144,2]
[355453407,1741181446519,-500.0,0.00011144,2]
[355453408,1741181446529,-500.0,0.00011144,2]
[355453409,1741181446539,-682.6,0.00011144,2]
[355453410,1741181446549,-800.3,0.00011144,2]
[355453411,1741181446558,-504.79139607,0.00011144,2]
[355453412,1741181446567,-156.185679,0.00011144,2]
[355453413,1741181446577,-500.0,0.00011144,2]
[355453414,1741181446587,-500.0,0.00011144,2]
[355453415,1741181446597,-500.0,0.00011144,2]
[355453416,1741181446607,-500.0,0.00011144,2]
[355453417,1741181446617,-508.54668647,0.00011144,2]
[355453418,1741181446626,-500.0,0.00011144,2]
[355453419,1741181446636,-500.0,0.00011144,2]
[355453420,1741181446646,-500.0,0.00011144,2]
[355453421,1741181446655,-500.0,0.00011144,2]
[355453422,1741181446665,-500.0,0.00011144,2]
[355453423,1741181446675,-500.0,0.00011144,2]
[355453424,1741181446685,-634.18,0.00011144,2]
[355453425,1741181446695,-500.0,0.00011144,2]
[355453426,1741181446705,-516.23,0.00011144,2]
[355453427,1741181446714,-500.0,0.00011144,2]
[355453428,1741181446724,-3271.47,0.00011144,2]
[355453429,1741181446733,-500.0,0.00011144,2]
[355453430,1741181446743,-500.0,0.00011144,2]
[355453431,1741181446752,-500.0,0.00011144,2]
[355453432,1741181446762,-1708.9,0.00011144,2]
[355453433,1741181446773,-500.0,0.00011144,2]
[355453434,1741181446783,-1080.41,0.00011144,2]
[355453435,1741181446793,-1256.77,0.00011144,2]
[355453436,1741181446803,-500.0,0.00011144,2]
[355453437,1741181446812,-500.0,0.00011144,2]
[355453438,1741181446822,-500.0,0.00011144,2]
[355453439,1741181446831,-500.0,0.00011144,2]
[355453440,1741181446841,-500.0,0.00011144,2]
[355453441,1741181446850,-504.93654903,0.00011144,2]
[355453442,1741181446859,-500.0,0.00011144,2]
[355453443,1741181446869,-1985.94,0.00011144,2]
[355453444,1741181446880,-500.0,0.00011144,2]
[355453445,1741181446889,-500.0,0.00011144,2]
[355453446,1741181446899,-500.0,0.00011144,2]
[355453447,1741181446909,-1469.56,0.00011144,2]
[355453448,1741181446919,-1061.29,0.00011144,2]
[355453449,1741181446929,-500.0,0.00011144,2]
[355453450,1741181446939,-500.0,0.00011144,2]
[355453451,1741181446948,-1431.65,0.00011144,2]
[355453452,1741181446958,-500.0,0.00011144,2]
[355453453,1741181446967,-500.0,0.00011144,2]
[355453454,1741181446976,-500.0,0.00011144,2]
[355453455,1741181446988,-500.0,0.00011144,2]
[355453456,1741181447000,-500.0,0.00011144,2]
[355453457,1741181447017,-500.0,0.00011144,2]
[355453458,1741181447027,-500.0,0.00011144,2]
[355453459,1741181447037,-1031.96,0.00011144,2]
[355453460,1741181447047,-500.0,0.00011144,2]
[355453461,1741181447057,-500.0,0.00011144,2]
[355453462,1741181447067,-500.0,0.00011144,2]
[355453463,1741181447077,-500.0,0.00011144,2]
[355453464,1741181447087,-500.0,0.00011144,2]
[355453465,1741181447097,-510.72844276,0.00011144,2]
[355453466,1741181447106,-954.64,0.00011144,2]
[355453467,1741181447116,-512.80701254,0.00011144,2]
[355453468,1741181447125,-1486.58,0.00011144,2]
[355453469,1741181447135,-500.0,0.00011144,2]
[355453470,1741181447146,-500.0,0.00011144,2]
[355453471,1741181447155,-500.0,0.00011144,2]
[355453472,1741181447165,-500.0,0.00011144,2]
[355453473,1741181447175,-1482.82,0.00011144,2]
[355453474,1741181447185,-510.73618053,0.00011144,2]
[355453475,1741181447195,-5000.0,0.00011144,2]
[355453476,1741181447204,-1205.33,0.00011144,2]
[355453477,1741181447214,-505.21970261,0.00011144,2]
[355453478,1741181447224,-500.0,0.00011144,2]
[355453479,1741181447233,-523.42179422,0.00011144,2]
[355453480,1741181447243,-2359.76,0.00011144,2]
[355453481,1741181447253,-500.0,0.00011144,2]
[355453482,1741181447262,-500.0,0.00011144,2]
[355453483,1741181447273,-500.0,0.00011144,2]
[355453484,1741181447283,-1927.62,0.00011144,2]
[355453485,1741181447293,-958.55,0.00011144,2]
[355453486,1741181447302,-500.0,0.00011144,2]
[355453487,1741181447312,-507.23157844,0.00011144,2]
[355453488,1741181447322,-1500.76,0.00011144,2]
[355453489,1741181447331,-1586.38,0.00011144,2]
[355453490,1741181447341,-500.0,0.00011144,2]
[355453491,1741181447351,-575.21,0.00011144,2]
[355453492,1741181447360,-1893.3,0.00011144,2]
[355453493,1741181447369,-505.20980942,0.00011144,2]
[355453494,1741181447379,-500.0,0.00011144,2]
[355453495,1741181447388,-2300.85,0.00011144,2]
[355453496,1741181447398,-500.0,0.00011144,2]
[355453497,1741181447407,-1290.97,0.00011144,2]
[355453498,1741181447416,-500.0,0.00011144,2]
[355453499,1741181447425,-500.0,0.00011144,2]
[355453500,1741181447435,-500.0,0.00011144,2]
[355453501,1741181447444,-500.0,0.00011144,2]
[355453502,1741181447453,-578.18,0.00011144,2]
[355453503,1741181447463,-1509.45,0.00011144,2]
[355453504,1741181447476,-500.0,0.00011144,2]
[355453505,1741181447486,-500.0,0.00011144,2]
[355453506,1741181447496,-1070.27,0.00011144,2]
[355453507,1741181447506,-2145.66,0.00011144,2]
[355453508,1741181447515,-508.74166785,0.00011144,2]
[355453509,1741181447526,-1103.22,0.00011144,2]
[355453510,1741181447536,-642.47,0.00011144,2]
[355453511,1741181447545,-3643.94,0.00011144,2]